lending/lending_fUSD_20240202
["ID","MTS","AMOUNT","RATE_DAILY","PERIOD"]
[313190797,1706908246011,-150.0,0.00022741,2]
[313190798,1706908246020,-500.0,0.00022741,2]
[313190799,1706908246029,-500.0,0.00022741,2]
[313190800,1706908246038,-500.0,0.00022741,2]
[313190801,1706908246048,-500.0,0.00022741,2]
[313190802,1706908246057,-500.0,0.00022741,2]
[313190803,1706908246067,-500.0,0.00022741,2]
[313190804,1706908246077,-482.31632819,0.00022741,2]
[313190805,1706908246085,-500.0,0.00022741,2]
[313190806,1706908246094,-150.88728937,0.00022741,2]
[313190807,1706908246103,-500.0,0.00022741,2]
[313190808,1706908246112,-500.0,0.00022741,2]
[313190809,1706908246121,-500.0,0.00022741,2]
[313190810,1706908246130,-500.0,0.00022741,2]
[313190811,1706908246139,-500.0,0.00022741,2]
[313190812,1706908246148,-500.0,0.00022741,2]
[313190813,1706908246157,-164.86566393,0.00022741,2]
[313190814,1706908246166,-548211.32667874,0.00022742,2]
[313190815,1706908246178,-2182.14170611,0.00022742,2]
[313190816,1706908246271,-941.78794294,0.00022641,2]
[313190817,1706908246280,-12001.75370998,0.00022742,2]
[313190818,1706908249572,495.94273594,0.00022414,2]
[313190819,1706908251654,155.0,0.00020376,2]
[313190820,1706908259034,300.0,0.000224,8]
[313190821,1706908259978,1333.70804756,0.00021732,2]
[313190822,1706908260308,199.60880723,0.00021732,2]
[313190823,1706908261147,600.0,0.000225,8]
[313190824,1706908264716,1173.1756,0.00022541,90]
[313190825,1706908272189,1500.0,0.000225,2]
[313190826,1706908279968,970.21,0.00021712,2]
[313190827,1706908321055,1025.21682242,0.00021858,2]
[313190828,1706908323565,421.31,0.00021806,2]
[313190829,1706908323807,421.31,0.00021866,2]
[313190830,1706908324191,421.31,0.00021925,2]
[313190831,1706908324401,421.31,0.00021985,2]
[313190832,1706908324859,421.31,0.00022045,2]
[313190833,1706908325065,421.31,0.00022105,2]
[313190834,1706908325301,421.31,0.00022165,2]
[313190835,1706908325550,421.31,0.00022224,2]
[313190836,1706908325592,800.0,0.00022493,2]
[313190837,1706908325758,421.31,0.00022284,2]
[313190838,1706908326435,421.31,0.00022344,2]
[313190839,1706908326639,421.31,0.00022404,2]
[313190840,1706908326861,421.31,0.00022464,2]
[313190841,1706908349245,289.8795039,0.00022501,2]
[313190842,1706908354900,5436.0,0.00022501,2]
[313190843,1706908357733,4286.26910501,0.00022501,2]
[313190844,1706908358221,155.0,0.00022501,2]
[313190845,1706908359443,203.31012739,0.00022501,2]
[313190846,1706908361509,162.73570966,0.00022501,2]
[313190847,1706908363509,215.77878553,0.00022501,2]
[313190848,1706908364010,283.72086324,0.00022501,2]
[313190849,1706908365144,4713.10602251,0.00022501,2]
[313190850,1706908365574,4534.36965629,0.00022501,2]
[313190851,1706908368490,197.37498757,0.00022501,2]
[313190852,1706908370293,221.13542553,0.00022501,2]
[313190853,1706908370903,2789.28128884,0.00022501,2]
[313190854,1706908371380,172.43584277,0.00022501,2]
[313190855,1706908371554,365.24008671,0.00022501,2]
[313190856,1706908372198,155.0,0.00022501,2]
[313190857,1706908372229,315.24379737,0.00022501,2]
[313190858,1706908372833,229.03230944,0.00022501,2]
[313190859,1706908373952,266.3113819,0.00022501,2]
[313190860,1706908375046,260.99505921,0.00022501,2]
[313190861,1706908376427,401.81085213,0.00022501,2]
[313190862,1706908376659,544.57626637,0.00022501,2]
[313190863,1706908376686,249.58469612,0.00022501,2]
[313190864,1706908376993,16816.49524538,0.00022501,2]
[313190865,1706908377189,161.17701772,0.00022501,2]
[313190866,1706908377734,19057.21734432,0.00022501,2]
[313190867,1706908379470,1405.71928031,0.00022501,2]
[313190868,1706908380272,505.57440672,0.00022501,2]
[313190869,1706908380317,525.44699598,0.00022501,2]
[313190870,1706908380781,1053.60193067,0.00022501,2]
[313190871,1706908381265,216.27832351,0.00022501,2]
[313190872,1706908382151,1207.4376444,0.00022501,2]
[313190873,1706908382757,155.0,0.00022501,2]
[313190874,1706908382796,372.35831287,0.00022501,2]
[313190875,1706908383187,3154.41404609,0.00022501,2]
[313190876,1706908383344,233.93753511,0.00022501,2]
[313190877,1706908384365,10528.96130049,0.00022501,2]
[313190878,1706908384439,3039.31060904,0.00022501,2]
[313190879,1706908386052,155.0,0.00022501,2]
[313190880,1706908387231,5230.97252369,0.00022501,2]
[313190881,1706908387262,943.43596546,0.00022501,2]
[313190882,1706908388236,7808.08129591,0.00022501,2]
[313190883,1706908388270,1064.2090234,0.00022501,2]
[313190884,1706908388743,5460.96831257,0.00022501,2]
[313190885,1706908390008,155.0,0.00022501,2]
[313190886,1706908391794,218.65413859,0.00022501,2]
[313190887,1706908392701,43133.53807385,0.00022501,2]
[313190888,1706908392937,23900.0,0.00021615,2]
[313190889,1706908392969,1044.60707487,0.00022501,2]
[313190890,1706908400311,166.36729638,0.00022407,2]
[313190891,1706908400567,216.35570619,0.00022407,2]
[313190892,1706908403353,155.0,0.00022501,2]
[313190893,1706908406461,502.9491441,0.00022501,2]
[313190894,1706908413698,5604.56185563,0.0002241,2]
[313190895,1706908413822,174.62906648,0.00022501,2]
[313190896,1706908418615,948.98219763,0.0002241,2]
[313190897,1706908430980,250.0,0.00021626,2]
[313190898,1706908439581,663.17595373,0.00022404,2]
[313190899,1706908454347,173.6385087,0.00022405,2]
[313190900,1706908456394,173.63850866,0.00022489,2]
[313190901,1706908461900,36370.2542,0.00022407,2]
[313190902,1706908466552,2260.65113177,0.00022501,2]
[313190903,1706908468487,150.0,0.00022473,2]
[313190904,1706908479756,5230.97252369,0.00022501,2]
[313190905,1706908486817,250.0,0.00021918,2]
[313190906,1706908487540,204.81049297,0.00022405,2]
[313190907,1706908487676,260.75269255,0.00022404,2]
[313190908,1706908489322,501.8,0.00019681,2]
[313190909,1706908489533,501.8,0.00021944,2]
[313190910,1706908490967,502.9491441,0.00022501,2]
[313190911,1706908493762,5230.97252369,0.00022501,2]
[313190912,1706908497742,155.0,0.00022501,2]
[313190913,1706908501583,150.0,0.00022501,2]
[313190914,1706908501687,503.69301813,0.00022501,2]
[313190915,1706908502532,5831.0014,0.00022405,2]
[313190916,1706908504900,10528.96130049,0.00022501,2]
[313190917,1706908504957,502.9491441,0.00022501,2]
[313190918,1706908507452,300.0,0.00022998,30]
[313190919,1706908507525,362.29024817,0.00022501,2]
[313190920,1706908507791,328.00294974,0.00022998,30]
[313190921,1706908509033,4257.98615526,0.00022501,2]
[313190922,1706908511758,690.15271441,0.00022501,2]
[313190923,1706908512242,155.0,0.00022501,2]
[313190924,1706908513479,1044.60707487,0.00022501,2]
[313190925,1706908514982,159.30807019,0.00022501,2]
[313190926,1706908515155,489.54660479,0.00022501,2]
[313190927,1706908515621,155.0,0.00022501,2]
[313190928,1706908518119,1858.12367916,0.00022501,2]
[313190929,1706908520896,6696.88824011,0.00022501,2]
[313190930,1706908522161,155.13655157,0.00022501,2]
[313190931,1706908522785,155.0,0.00022501,2]
[313190932,1706908525781,216.27832351,0.00022501,2]
[313190933,1706908527486,863.78319771,0.00022501,2]
[313190934,1706908528585,302.08860795,0.00022501,2]
[313190935,1706908528963,506.26069476,0.00022501,2]
[313190936,1706908529182,545.94481101,0.00022404,2]
[313190937,1706908530235,155.38394594,0.00022501,2]
[313190938,1706908530917,157.92743207,0.00022501,2]
[313190939,1706908531517,273.19969104,0.00022439,2]
[313190940,1706908535888,518.38382827,0.00022501,2]
[313190941,1706908536124,1854.15052299,0.00022501,2]
[313190942,1706908540618,362.82450126,0.00022501,2]
[313190943,1706908541784,5228.78655032,0.00022501,2]
[313190944,1706908542045,176.94784805,0.00022402,2]
[313190945,1706908542521,155.0,0.00022501,2]
[313190946,1706908543842,413.22910588,0.00022501,2]
[313190947,1706908544388,171.88977379,0.00022501,2]
[313190948,1706908544759,1817.65805484,0.00022501,2]
[313190949,1706908545742,673515.5216629,0.00022501,2]
[313190950,1706908545781,251.48464167,0.00022501,2]
[313190951,1706908546778,672.34626849,0.00022404,2]
[313190952,1706908546942,245.67142671,0.00022501,2]
[313190953,1706908547890,517.58869657,0.00022501,2]
[313190954,1706908548855,3736.37457042,0.00022439,2]
[313190955,1706908549616,500.0,0.00022501,2]
[313190956,1706908550028,13046.63577094,0.00022501,2]
[313190957,1706908554070,761.27446852,0.00022501,2]
[313190958,1706908554095,632.65479842,0.00022404,2]
[313190959,1706908556455,3338.37650623,0.00022501,2]
[313190960,1706908558754,642.20938179,0.00022501,2]
[313190961,1706908559664,596040.61520748,0.00022501,2]
[313190962,1706908560618,359.0910793,0.00022501,2]
[313190963,1706908560668,2325.91196662,0.00022501,2]
[313190964,1706908561011,2070.82387328,0.00022501,2]
[313190965,1706908562872,245.66145215,0.00022501,2]
[313190966,1706908564540,274.34099471,0.00022501,2]
[313190967,1706908580666,33464.27485041,0.00022501,2]
[313190968,1706908586415,1050.38150235,0.00022439,2]
[313190969,1706908596667,22447.63706271,0.00022501,2]
[313190970,1706908597483,431.24174183,0.00022439,2]
[313190971,1706908605714,2000.0,0.00021604,2]
[313190972,1706908616485,356.01,0.00021604,2]
[313190973,1706908624282,3588.5631,0.00022405,2]
[313190974,1706908628613,1000.0,0.000225,2]
[313190975,1706908636685,1000.0,0.00021626,2]
[313190976,1706908644028,610.57725012,0.00022439,2]
[313190977,1706908649453,545.944811,0.00022438,2]
[313190978,1706908650582,761.27446852,0.00022501,2]
[313190979,1706908655559,737.54,0.00021918,2]
[313190980,1706908657259,379.87,0.00021593,2]
[313190981,1706908661941,182.13312736,0.00022439,2]
[313190982,1706908674913,1956.37,0.00021587,2]
[313190983,1706908680570,2910.65423049,0.00022501,2]
[313190984,1706908681653,150.0,0.00022501,2]
[313190985,1706908684079,2490.91638028,0.00022439,2]
[313190986,1706908688962,3039.31060904,0.00022438,2]
[313190987,1706908689131,1053.60193067,0.00022438,2]
[313190988,1706908689203,421.7698656,0.00022439,2]
[313190989,1706908689438,2789.28128884,0.00022438,2]
[313190990,1706908690655,283.72086324,0.00022438,2]
[313190991,1706908695721,161.17701772,0.00022437,2]
[313190992,1706908696703,1207.4376444,0.00022437,2]
[313190993,1706908703609,162.21446243,0.00022402,2]
[313190994,1706908708558,162.21446236,0.00022405,2]
[313190995,1706908713585,162.21446236,0.00022408,2]
[313190996,1706908718449,502.11641,0.0002164,2]
[313190997,1706908718768,162.21446236,0.00022411,2]
[313190998,1706908723605,162.21446236,0.00022414,2]
[313190999,1706908727397,808.5,0.00021596,2]
[313191000,1706908728559,162.21446236,0.00022417,2]
[313191001,1706908733564,162.21446236,0.00022421,2]
[313191002,1706908737263,448.23084566,0.00022439,2]
[313191003,1706908738588,162.21446236,0.00022424,2]
[313191004,1706908743580,162.21446236,0.00022427,2]
[313191005,1706908748564,162.21446236,0.0002243,2]
[313191006,1706908753468,10095.1198,0.00022438,2]
[313191007,1706908753574,162.21446236,0.00022433,2]
[313191008,1706908754372,155.0,0.00022501,2]
[313191009,1706908758593,162.21446236,0.00022436,2]
[313191010,1706908759092,2910.65423049,0.00022501,2]
[313191011,1706908759795,545.944811,0.00022438,2]
[313191012,1706908763596,162.21446236,0.00022439,2]
[313191013,1706908766727,700.2543349,0.00022439,2]
[313191014,1706908767482,3039.31060904,0.00022501,2]
[313191015,1706908767819,239.73,0.00021758,2]
[313191016,1706908768038,239.73,0.00021817,2]
[313191017,1706908768254,239.73,0.00021877,2]
[313191018,1706908768315,692.19851741,0.000225,2]
[313191019,1706908768664,239.73,0.00021937,2]
[313191020,1706908769009,239.73,0.00021996,2]
[313191021,1706908769105,239.73,0.00022056,2]
[313191022,1706908769534,239.73,0.00022116,2]
[313191023,1706908769766,239.73,0.00022175,2]
[313191024,1706908769940,2789.28128884,0.00022501,2]
[313191025,1706908769976,239.73,0.00022235,2]
[313191026,1706908770379,239.73,0.00022295,2]
[313191027,1706908770596,239.73,0.00022354,2]
[313191028,1706908770791,239.73,0.00022414,2]
[313191029,1706908771010,239.73,0.00022474,2]
[313191030,1706908779968,257.78,0.00021539,2]
[313191031,1706908781715,257.78,0.00021676,2]
[313191032,1706908783000,257.78,0.00021813,2]
[313191034,1706908789721,834.3564,0.00022438,2]
[313191035,1706908796242,206.5383,0.00022438,2]
[313191036,1706908797730,287.49449456,0.00022439,2]
[313191037,1706908809932,150.92565863,0.00022417,2]
[313191038,1706908814844,155.0,0.00022501,2]
[313191039,1706908819269,1660.61092018,0.00022439,2]
[313191040,1706908820262,311.10938782,0.00022501,2]
[313191041,1706908824493,281.1799104,0.00022439,2]
[313191042,1706908826276,952.10937077,0.00022311,2]
[313191043,1706908827208,1207.4376444,0.00022501,2]
[313191044,1706908828106,6723.2448,0.00022437,2]
[313191045,1706908828133,281.9797924,0.00022311,2]
[313191046,1706908833485,1302.01412096,0.00022276,2]
[313191047,1706908846119,285.84680506,0.00022311,2]
[313191048,1706908848687,5534.8428,0.00022438,2]
[313191049,1706908851175,173.63850866,0.00022438,2]
[313191050,1706908854061,2292.85205729,0.00022438,2]
[313191051,1706908856349,90456.905,0.00022438,2]
[313191052,1706908861527,300.0,0.00022501,2]
[313191053,1706908870709,247.73314621,0.00022311,2]
[313191054,1706908884976,250.0,0.00021586,2]
[313191055,1706908889219,247.42374992,0.00022311,2]
[313191056,1706908901519,496.6,0.00019667,2]
[313191057,1706908901726,496.6,0.0002193,2]
[313191058,1706908910406,35896.93,0.00022436,2]
[313191059,1706908927813,298.82056378,0.00022439,2]
[313191060,1706908940973,116.45672921,0.00022438,2]
[313191061,1706908940999,6915.85940055,0.00022438,2]
[313191062,1706908946888,1000.0,0.00022438,2]
[313191063,1706908947092,466.83622326,0.00022439,2]
[313191064,1706908947635,738.8623,0.00022436,2]
[313191065,1706908949346,14229.65,0.00021596,2]
[313191066,1706908951628,698.51448199,0.00022491,2]
[313191067,1706908959218,890.6054,0.00022438,2]
[313191068,1706908959752,6731.6674,0.00022436,2]
[313191069,1706908983580,2500.0,0.00022438,2]
[313191070,1706908995688,3666.8342,0.00022436,2]
[313191071,1706909036955,2000.0,0.00021613,2]
[313191072,1706909053279,157.54,0.00021613,2]
[313191073,1706909074115,13110.8185,0.00022438,2]
[313191074,1706909078011,250.0,0.00021918,2]
[313191075,1706909080424,150.0,0.00022,2]
[313191076,1706909086747,200.0,0.00021617,2]
[313191077,1706909090371,20000.0,0.00022,2]
[313191078,1706909091575,6291.8879,0.00022436,2]
[313191079,1706909106475,-150.0,0.00022501,2]
[313191080,1706909121694,769.01361155,0.000225,2]
[313191081,1706909132318,4286.26910501,0.000225,2]
[313191082,1706909132961,324.16,0.00021612,2]
[313191083,1706909138194,4534.36965629,0.000225,2]
[313191084,1706909146948,221.13542553,0.000225,2]
[313191085,1706909151428,801855.3064,0.00022436,2]
[313191086,1706909152411,7650.9737,0.00022438,2]
[313191087,1706909152959,525.44699598,0.000225,2]
[313191088,1706909153834,4713.10602251,0.000225,2]
[313191089,1706909154451,215.77878553,0.000225,2]
[313191090,1706909154484,249.58469612,0.000225,2]
[313191091,1706909161475,197.57874085,0.000225,2]
[313191092,1706909167763,243.24394796,0.000225,2]
[313191093,1706909172112,700.10293115,0.000225,2]
[313191094,1706909173435,1260.08950664,0.000225,2]
[313191095,1706909208780,830.33,0.00021598,2]
[313191096,1706909210844,4286.26910501,0.000225,2]
[313191097,1706909218437,152.55,0.00021758,2]
[313191098,1706909218678,152.55,0.00021871,2]
[313191099,1706909218895,152.55,0.00021985,2]
[313191100,1706909219303,152.55,0.00022098,2]
[313191101,1706909219559,152.55,0.00022211,2]
[313191102,1706909219817,152.55,0.00022325,2]
[313191103,1706909220010,152.55,0.00022438,2]
[313191104,1706909223487,221.13542553,0.000225,2]
[313191105,1706909223938,204.0,0.00021592,2]
[313191106,1706909232340,4713.10602251,0.000225,2]
[313191107,1706909234000,197.57874085,0.000225,2]
[313191108,1706909246274,243.24394796,0.000225,2]
[313191109,1706909248586,700.10293115,0.000225,2]
[313191110,1706909249934,1260.08950664,0.000225,2]
[313191111,1706909251357,300.0,0.000224,8]
[313191112,1706909253493,600.0,0.000225,8]
[313191113,1706909256631,522.74994125,0.000225,2]
[313191114,1706909263375,207.4091,0.00022436,2]
[313191115,1706909311979,221.13542553,0.000225,2]
[313191116,1706909324559,2565.28947715,0.00022439,2]
[313191117,1706909336608,176.85,0.00022,2]
[313191118,1706909340880,250.0,0.00021567,2]
[313191119,1706909355467,88005.0,0.00022314,2]
[313191120,1706909377841,489.11,0.00019645,2]
[313191121,1706909378137,489.11,0.00021909,2]
[313191122,1706909397465,155.0,0.000225,2]
[313191123,1706909402264,300.0,0.000225,2]
[313191124,1706909413037,194151.4387,0.00022436,2]
[313191140,1706909431655,-379.0,0.00022501,2]
[313191141,1706909431668,-501.636,0.00022501,2]
[313191142,1706909431766,-550.0,0.00022501,2]
[313191143,1706909431782,-35156.89936416,0.00022501,2]
[313191144,1706909431792,-1850.0,0.00022501,2]
[313191145,1706909431801,-200.0,0.00022501,2]
[313191146,1706909431811,-2000.0,0.00022501,2]
[313191147,1706909431822,-200.0,0.00022501,2]
[313191148,1706909431831,-422.70248564,0.00022502,2]
[313191149,1706909431842,-203.25070225,0.00022502,2]
[313191150,1706909431854,-162.07687183,0.00022502,2]
[313191151,1706909431865,-363.80697261,0.00022502,2]
[313191152,1706909431875,-314.40306534,0.00022502,2]
[313191153,1706909431884,-196.9846735,0.00022502,2]
[313191155,1706909431893,-170.75252884,0.00022502,2]
[313191157,1706909431902,-266.21465946,0.00022502,2]
[313191159,1706909431911,-256.56027218,0.00022502,2]
[313191161,1706909431921,-261.36479129,0.00022502,2]
[313191163,1706909431930,-2836.9794716,0.00022502,2]
[313191165,1706909431939,-395.53193855,0.00022502,2]
[313191167,1706909431948,-235.50858703,0.00022502,2]
[313191169,1706909431957,-8124.01570216,0.00022502,2]
[313191170,1706909431967,-171.75166843,0.00022502,2]
[313191171,1706909431976,-157.1305501,0.00022502,2]
[313191172,1706909431985,-370.95399337,0.00022502,2]
[313191173,1706909431994,-375.87257665,0.00022502,2]
[313191174,1706909432003,-234.71591204,0.00022502,2]
[313191175,1706909432012,-1281.0216652,0.00022502,2]
[313191176,1706909432021,-941.06976362,0.00022502,2]
[313191177,1706909432030,-1327.19600305,0.00022503,2]
[313191178,1706909432040,-5158.8468335,0.00022503,2]
[313191179,1706909432050,-1000.0,0.00022504,2]
[313191180,1706909432062,-914.62298388,0.00022504,2]
[313191181,1706909432071,-158.67878115,0.00022504,2]
[313191182,1706909432080,-650.70806579,0.00022504,2]
[313191183,1706909432089,-217.71127859,0.00022504,2]
[313191184,1706909432099,-155.35667322,0.00022504,2]
[313191185,1706909432107,-174.43154278,0.00022504,2]
[313191186,1706909432116,-2627.38983297,0.00022504,2]
[313191187,1706909432125,-155.80319927,0.00022512,2]
[313191188,1706909432134,-499.99,0.00022529,2]
[313191189,1706909432143,-9999.99,0.00022529,2]
[313191190,1706909432153,-1549.87,0.00022529,2]
[313191191,1706909432162,-517.26,0.00022529,2]
[313191192,1706909432171,-758.36,0.00022529,2]
[313191193,1706909432182,-1959.5,0.00022529,2]
[313191194,1706909432191,-570.88537456,0.00022529,2]
[313191195,1706909432200,-1259.02032564,0.00022534,2]
[313191196,1706909432209,-157.91859783,0.00022534,2]
[313191197,1706909432218,-242.88266541,0.00022534,2]
[313191198,1706909432228,-155.52675014,0.00022534,2]
[313191199,1706909432238,-155.0,0.00022534,2]
[313191200,1706909432248,-203.76527707,0.00022534,2]
[313191201,1706909432258,-1816.85072469,0.00022536,2]
[313191202,1706909432268,-155.0,0.00022536,2]
[313191203,1706909432277,-581.39803385,0.00022536,2]
[313191204,1706909432287,-280.05887207,0.00022536,2]
[313191205,1706909432296,-6387.23,0.00022536,2]
[313191206,1706909432308,-185.76225037,0.00022536,2]
[313191207,1706909432318,-760.13396495,0.00022536,2]
[313191208,1706909432327,-188.88751877,0.00022536,2]
[313191209,1706909432338,-484.96948243,0.00022536,2]
[313191210,1706909432348,-297.80872313,0.00022536,2]
[313191211,1706909432359,-281.27567579,0.00022536,2]
[313191212,1706909432368,-1212.24754699,0.00022536,2]
[313191213,1706909432387,-3037.10807214,0.00022536,2]
[313191214,1706909432398,-2899.78902923,0.00022536,2]
[313191215,1706909432408,-362.66839239,0.00022536,2]
[313191216,1706909432418,-155.0,0.00022536,2]
[313191217,1706909432427,-245.5740509,0.00022536,2]
[313191218,1706909432437,-155.0,0.00022536,2]
[313191219,1706909432447,-338.56847169,0.00022536,2]
[313191220,1706909432458,-3338.37650623,0.00022536,2]
[313191221,1706909432468,-502.73699602,0.00022536,2]
[313191222,1706909432478,-309.59172365,0.00022536,2]
[313191223,1706909432490,-155.26565637,0.00022536,2]
[313191224,1706909432500,-247.34763938,0.00022536,2]
[313191225,1706909432510,-526.53963541,0.00022536,2]
[313191226,1706909432522,-782.06121237,0.00022536,2]
[313191227,1706909432532,-155.0,0.00022536,2]
[313191228,1706909432542,-525.44510824,0.00022536,2]
[313191229,1706909432552,-4257.98615526,0.00022537,2]
[313191230,1706909432563,-155.44963497,0.00022537,2]
[313191231,1706909432573,-999.99,0.00022538,2]
[313191232,1706909432583,-22864.38877088,0.00022538,2]
[313191233,1706909432592,-509.02387481,0.00022538,2]
[313191234,1706909432602,-492.7479,0.00022538,2]
[313191235,1706909432611,-1254.21981707,0.00022538,2]
[313191236,1706909432620,-1060176.17924534,0.00022539,2]
[313191237,1706909432630,-731.3,0.00022539,2]
[313191238,1706909432639,-165.62254498,0.0002254,2]
[313191239,1706909432648,-129391.56721022,0.0002254,2]
[313191240,1706909432662,-2228.73107918,0.0002254,2]
[313191241,1706909432692,-4600.6,0.0002254,2]
[313191242,1706909437624,-645.88539279,0.0002254,2]
[313191243,1706909437636,-438.47,0.0002254,2]
[313191244,1706909437679,-1376.22010586,0.0002254,2]
[313191245,1706909438586,-437.70943335,0.0002254,2]
[313191246,1706909438643,-13516.7313786,0.0002254,2]
[313191247,1706909438654,-1000.0,0.00022541,2]
[313191248,1706909438663,-2074.4319,0.00022541,2]
[313191249,1706909438673,-500.0,0.00022541,2]
[313191250,1706909438682,-4627.9433,0.00022541,2]
[313191251,1706909438692,-2500.0,0.00022541,2]
[313191252,1706909438701,-782.5291,0.00022541,2]
[313191253,1706909438711,-353.22,0.00022548,2]
[313191254,1706909438720,-152.55,0.00022552,2]
[313191255,1706909438730,-900.0,0.000226,8]
[313191256,1706909438738,-195.10400093,0.00022612,2]
[313191257,1706909438748,-165.62254498,0.0002263,2]
[313191258,1706909438758,-871.07262471,0.00022637,2]
[313191259,1706909438768,-155.09817536,0.00022637,2]
[313191260,1706909438778,-265.15535623,0.00022637,2]
[313191261,1706909438789,-1004.65030942,0.00022637,2]
[313191262,1706909438799,-696.31410968,0.00022637,2]
[313191263,1706909438808,-242.09150057,0.00022637,2]
[313191265,1706909438818,-1553.67970284,0.00022638,2]
[313191266,1706909438829,-216.32369086,0.00022638,2]
[313191267,1706909438838,-523.16407383,0.00022638,2]
[313191268,1706909438851,-250.59536802,0.00022638,2]
[313191269,1706909438862,-2314.06344386,0.00022638,2]
[313191270,1706909438871,-768.37885061,0.00022639,2]
[313191271,1706909438880,-353.39032026,0.0002264,2]
[313191272,1706909438889,-583.66541534,0.0002264,2]
[313191273,1706909438899,-482.6642192,0.0002264,2]
[313191274,1706909438908,-156.36940979,0.0002264,2]
[313191275,1706909438917,-191.16450274,0.0002264,2]
[313191277,1706909438926,-221.62681004,0.0002264,2]
[313191279,1706909438935,-358.08722414,0.0002264,2]
[313191280,1706909438944,-195.87615889,0.0002264,2]
[313191283,1706909438955,-2616.90790933,0.0002264,4]
[313191285,1706909438964,-1993.1703,0.0002264,2]
[313191286,1706909438974,-8833.5193,0.0002264,2]
[313191288,1706909438984,-2683.0611,0.0002264,2]
[313191290,1706909438993,-27309.884,0.0002264,2]
[313191292,1706909439002,-310.6658,0.0002264,2]
[313191294,1706909439011,-270.83268122,0.00022641,2]
[313191296,1706909439021,-155.0,0.00022641,2]
[313191298,1706909439030,-155.83338709,0.00022641,2]
[313191300,1706909439039,-155.0,0.00022641,2]
[313191302,1706909439048,-2218.19327361,0.00022641,2]
[313191304,1706909439058,-162.97694305,0.00022641,2]
[313191306,1706909439067,-178.02648424,0.00022641,2]
[313191308,1706909439076,-152.55,0.00022665,2]
[313191310,1706909439085,-356.01,0.00022684,2]
[313191312,1706909439094,-157.54,0.00022694,2]
[313191314,1706909439104,-1200.0,0.000227,8]
[313191316,1706909439113,-800.0,0.00022712,2]
[313191318,1706909439123,-165.62254498,0.0002272,2]
[313191320,1706909439132,-150.0,0.00022724,2]
[313191322,1706909439141,-2000.0,0.00022726,2]
[313191324,1706909439150,-200.0,0.00022726,2]
[313191326,1706909439161,-828.642458,0.00022726,2]
[313191328,1706909439171,-200.0,0.00022726,2]
[313191330,1706909439180,-150.0,0.00022727,2]
[313191333,1706909439193,-150.0,0.00022729,2]
[313191335,1706909439202,-150.0,0.0002273,2]
[313191337,1706909439211,-150.0,0.0002273,2]
[313191339,1706909439220,-150.0,0.00022732,2]
[313191341,1706909439229,-150.0,0.00022736,2]
[313191343,1706909439241,-2146.87991109,0.00022738,2]
[313191345,1706909439250,-524.31366153,0.00022738,2]
[313191347,1706909439259,-155.4231818,0.00022739,2]
[313191349,1706909439268,-221.06953751,0.00022739,2]
[313191351,1706909439278,-701.38557768,0.0002274,2]
[313191353,1706909439287,-155.17807555,0.0002274,2]
[313191355,1706909439296,-265.23406397,0.0002274,2]
[313191357,1706909439305,-205.8471499,0.0002274,2]
[313191359,1706909439314,-155.46427974,0.0002274,2]
[313191360,1706909439323,-2624.88799229,0.0002274,2]
[313191362,1706909439332,-200.0,0.0002274,2]
[313191364,1706909439342,-155.31861112,0.0002274,2]
[313191367,1706909439352,-578.6637511,0.0002274,2]